Cogmind - Beta 10.2 @@@ ROGUE MODE // 2020.10.31 @ 16:12:33 // Halloween2020/ForbiddenLore Player: Ty Piggbottom Result: Destroyed by G-47 Trooper with Particle Gun Performance ------------- Evolutions (0) 0 Regions Visited (2) 400 Robots Destroyed (37) 185 Value Destroyed (540) 540 Prototype IDs (4) 80 Alien Tech Used (0) 0 Bonus (0) 0 TOTAL SCORE: 1205 Bonus ------- None Cogmind --------- Core Integrity 0/250 Matter 280/300 Energy 152/160 System Corruption 0% Temperature Cool (366) Movement Hovering (180) Ox2 Location -10/Mines Parts ------- > --- POWER (1) -------- Light Nuclear Core > --- PROPULSION (2) --- Hover Unit > --- UTILITY (2) ------ Medium Storage Unit Hacking Suite > --- WEAPON (2) ------- Particle Cannon Datajack > --- INVENTORY (8) ---- Sensor Array Improved Signal Interpreter Improved Terrain Scanner Transport Network Coupler Integration Mediator Particle Cannon Peak State ------------ > --- POWER ------------ Light Nuclear Core > --- PROPULSION ------- Hover Unit Hover Unit > --- UTILITY ---------- Medium Storage Unit Hacking Suite > --- WEAPON ----------- Particle Cannon Particle Cannon > --- INVENTORY -------- Small Storage Unit Sensor Array Improved Signal Interpreter Terrain Scanner Transport Network Coupler Particle Cannon Datajack Datajack [Rating: 14] Favorites ----------- Power Light Nuclear Core Engine Ion Engine Power Core Light Nuclear Core Propulsion Aluminum Leg Leg Aluminum Leg Hover Unit Hover Unit Flight Unit Flight Unit Utility Small Storage Unit Device Improved Terrain Scanner Storage Small Storage Unit Processor Seismic Analyzer Hackware Hacking Suite Weapon Particle Cannon Energy Gun EM Pulse Gun Energy Cannon Particle Cannon Ballistic Gun Light Assault Rifle Special Melee Weapon Datajack Build | -11 -10 -10 ------- Run | Scr Mat Min Slots Evolved . | . . . Power . | . . . Propulsion . | . . . Utility . | . . . Weapon . | . . . Parts Attached 68 | 16 50 2 Power 7 | 2 5 . Engine 4 | 2 2 . Core 3 | . 3 . Reactor . | . . . Propulsion 12 | 2 10 . Treads . | . . . Leg 8 | 2 6 . Wheel . | . . . Hover 2 | . 2 . Flight 2 | . 2 . Utility 19 | 5 14 . Device 5 | 1 4 . Storage 11 | 3 8 . Processor 2 | 1 1 . Hackware 1 | . 1 . Protection . | . . . Artifact . | . . . Weapon 30 | 7 21 2 Energy Gun 9 | 4 5 . Energy Cannon 6 | . 5 1 Ballistic Gun 9 | 3 6 . Ballistic Cannon . | . . . Launcher . | . . . Special Weapon . | . . . Impact Weapon . | . . . Slashing Weapon . | . . . Piercing Weapon . | . . . Special Melee Weapon 6 | . 5 1 Unidentified Prototypes . | . . . Parts Lost 9 | . 7 2 Power 1 | . 1 . Propulsion 3 | . 2 1 Utility . | . . . Weapon 5 | . 4 1 Highest Loss Streak 3 | . 3 1 Average Slot Usage (%) 97 | . 98 89 Engine 3 | . 3 . Core 10 | . 10 14 Leg 17 | . 17 . Hover 9 | . 9 20 Device 1 | . 1 . Storage 19 | . 19 14 Processor 2 | . 2 . Hackware 4 | . 3 14 Energy Gun 5 | . 5 . Energy Cannon 11 | . 10 26 Ballistic Gun 10 | . 10 . Naked Turns . | . . . Heaviest Build 21 | 13 21 21 Greatest Support 20 | 20 20 12 Greatest Overweight (x) 4 | 2 4 3 Average Overweight (x) . | . . 1 Largest Inventory Capacity 14 | 6 14 8 Average Capacity 6 | 4 6 8 Most Carried 9 | 6 9 7 Average Carried 5 | 3 6 6 Final Capacity 8 | 4 8 8 Final Carried 7 | 3 7 6 Class Distribution -------------------- 54% | Scavenger-Mutant 45% | Mutant Dominant Class ---------------- Scavenger-Mutant | -10/Materials Mutant | -10/Mines Resources | -11 -10 -10 ----------- Run | Scr Mat Min Matter Collected 1087 | 470 617 . Remotely . | . . . Salvage Created 1153 | 395 722 36 Parts 96 | 36 57 3 Haulers Intercepted 2 | . 2 . Recyclers Shooed 2 | . 2 . Parts Field Recycled . | . . . Retrieved Matter . | . . . Parts Self-Destructed . | . . . Prevented . | . . . Kills | -11 -10 -10 ------- Run | Scr Mat Min Combat Hostiles Destroyed 12 | . 11 1 Guns 7 | . 7 . Cannons 2 | . 1 1 AOE 3 | . 3 . Classes Destroyed 8 | 3 5 . Worker 6 | 4 2 . Tunneler 9 | 9 . . Hauler 2 | . 2 . Recycler 3 | 1 2 . Operator 2 | . 2 . Watcher 3 | . 3 . Swarmer 3 | . 3 . Grunt 9 | . 8 1 Best Kill Streak 3 | 3 3 1 Combat Bots Only 3 | . 3 1 Max Kills in Single Turn 2 | 1 2 1 Gunslinging . | . . . Exploded 2 | . 2 . Melee . | . . . Uniques/NPCs Destroyed . | . . . Combat | -11 -10 -10 -------- Run | Scr Mat Min Damage Taken 1220 | . 915 305 Core 258 | . 185 73 Absorbed by Shields . | . . . Core Remaining (%) 100 | 100 . . Volleys Fired 139 | 43 88 8 Largest 2 | 2 2 2 Hottest 136 | 60 136 136 Shots Fired 223 | 47 160 16 Gun 189 | 47 142 . Cannon 34 | . 18 16 Launcher . | . . . Special . | . . . Kinetic 90 | 4 86 . Thermal 43 | . 27 16 Explosive . | . . . Electromagnetic 90 | 43 47 . Robot Hit Streak 15 | 15 8 5 Robot Miss Streak 8 | 2 8 3 Penetration Max . | . . . Secondary Targets . | . . . Shots Hit Robots 142 | 37 97 8 Core Hits 52 | 15 36 1 Critical Hits . | . . . Critical Kills . | . . . Critical Parts Destroyed . | . . . Melee Attacks 3 | . 3 . Impact . | . . . Slashing . | . . . Piercing . | . . . Sneak Attacks 3 | . 3 . Combat Hostiles 1 | . 1 . Follow-up Attacks . | . . . Damage Inflicted 1809 | 546 1159 104 Guns 1368 | 522 846 . Cannons 309 | . 205 104 Explosions 132 | 24 108 . Melee . | . . . Ramming . | . . . Kinetic 531 | 46 485 . Thermal 473 | 24 345 104 Explosive . | . . . Electromagnetic 805 | 476 329 . Impact . | . . . Slashing . | . . . Piercing . | . . . Highest Corruption . | . . . Average Corruption . | . . . Corruption Purged . | . . . Overload Shots . | . . . Overflow Damage 9 | 9 . . Projectiles . | . . . Explosions 9 | 9 . . Melee . | . . . Knockbacks . | . . . Impact . | . . . Kinetic . | . . . Secondary . | . . . Self-Inflicted Damage . | . . . Shots . | . . . Rammed . | . . . Targets Rammed 1 | . 1 . Kicked 1 | . 1 . Crushed . | . . . Highest Temperature 404 | . 240 404 Average Temperature 92 | . 60 260 Received Heat Transfer 546 | . 375 171 Effects 3 | . . 3 Shutdowns 1 | . . 1 Interference 2 | . . 2 Siege Activations . | . . . Robots Corrupted . | . . . Combat Hostiles . | . . . Parts Fried 4 | 4 . . Impact Corruptions . | . . . Robots Melted . | . . . Combat Hostiles . | . . . Parts Melted 2 | . 2 . Heat Transferred 829 | 50 594 185 Parts Sabotaged . | . . . Parts Stolen . | . . . Parts Stripped . | . . . Power Chain Reactions 3 | 1 2 . Missiles Intercepted . | . . . Alert | -11 -10 -10 ------- Run | Scr Mat Min Peak Influence 178 | 55 178 20 Initial 9 | . 9 . Average 44 | 16 55 5 Maximum Alert Level . | . . . Low Security (%) 100 | 100 100 100 Level 1 . | . . . Level 2 . | . . . Level 3 . | . . . Level 4 . | . . . Level 5 . | . . . High Security . | . . . Max Security . | . . . Squads Dispatched 6 | . 6 . Investigation 4 | . 4 . Extermination . | . . . Reinforcement 2 | . 2 . Assault . | . . . Garrison . | . . . Intercept . | . . . Construction Impeded . | . . . Haulers Reinforced . | . . . Stealth | -11 -10 -10 --------- Run | Scr Mat Min Distress Signals 1 | . 1 . Communications Jammed . | . . . Distress Signals . | . . . Times Spotted 25 | . 23 2 Peak Tracking Total 4 | . 4 2 Tactical Retreats 4 | . 4 . Traps | -11 -10 -10 ------- Run | Scr Mat Min Traps Triggered 2 | . 2 . Indirectly . | . . . Trap Hack Attempts . | . . . Triggered . | . . . Disarmed . | . . . Reprogrammed . | . . . Reused . | . . . Traps Extracted . | . . . Installed . | . . . Triggered . | . . . Machines | -11 -10 -10 ---------- Run | Scr Mat Min Machines Disabled 2 | . 2 . Max in Single Turn 1 | . 1 . Machines Sabotaged . | . . . Garrisons Compromised . | . . . Overloaded Fab Kills . | . . . Fab Network Shutdowns . | . . . Hacking | -11 -10 -10 --------- Run | Scr Mat Min Machines Accessed 9 | . 9 . Terminals 6 | . 6 . Fabricators . | . . . Repair Stations 1 | . 1 . Recycling Units 2 | . 2 . Scanalyzers . | . . . Garrison Access . | . . . Total Hacks 41 | . 41 . Successful 28 | . 28 . Failed 13 | . 13 . Catastrophic 2 | . 2 . Database Lockouts . | . . . Manual . | . . . Terminals 32 | . 32 . Fabricators . | . . . Repair Stations 3 | . 3 . Recycling Units 6 | . 6 . Scanalyzers . | . . . Garrison Access . | . . . Terminal Hacks 21 | . 21 . Record 5 | . 5 . Robot Analysis 1 | . 1 . Prototype ID Bank 2 | . 2 . Emergency Access Points 1 | . 1 . Terminal Index 1 | . 1 . Alert Level 1 | . 1 . Unreport Threat 2 | . 2 . Locate Traps 1 | . 1 . Dispatch Records 1 | . 1 . Transport Status 1 | . 1 . Assault Status 1 | . 1 . Recall Investigation 1 | . 1 . Hauler Manifests 1 | . 1 . Registered Components 1 | . 1 . Zone Layout 1 | . 1 . Fabricator Hacks . | . . . Repair Station Hacks 2 | . 2 . Scan Component 1 | . 1 . Repair 1 | . 1 . Recycling Unit Hacks 5 | . 5 . Report Inventory 4 | . 4 . Retrieve Components 1 | . 1 . Scanalyzer . | . . . Garrison Access Hacks . | . . . Unauthorized Hacks . | . . . Terminals . | . . . Fabricators . | . . . Repair Stations . | . . . Recycling Units . | . . . Scanalyzers . | . . . Garrison Access . | . . . Data Cores Recovered . | . . . Used . | . . . Hacking Detections 8 | . 8 . Full Trace Events 6 | . 6 . Feedback Events . | . . . Feedback Blocked . | . . . Robot Schematics Acquired . | . . . Robots Built . | . . . Matter . | . . . Time . | . . . Total Robot Build Rating . | . . . Part Schematics Acquired . | . . . Parts Built . | . . . Matter . | . . . Time . | . . . Total Part Build Rating . | . . . Parts Repaired 1 | . 1 . Time 26 | . 26 . Parts Recycled . | . . . Recycled Matter . | . . . Retrieved Matter . | . . . Retrieved Components 7 | . 7 . Parts Scanalyzed . | . . . Part Schematics Acquired . | . . . Parts Damaged . | . . . Bothacking | -11 -10 -10 ------------ Run | Scr Mat Min Used RIF Installer . | . . . Robots Hacked 2 | . 2 . Non-combat 1 | . 1 . Combat 1 | . 1 . Robot Hacks Applied 3 | . 3 . parse_system 2 | . 2 . no_distress 1 | . 1 . Relay Couplers Released . | . . . Robots Rewired . | . . . Allies Hacked . | . . . Hacks Repelled . | . . . Allies | -11 -10 -10 -------- Run | Scr Mat Min Total Allies . | . . . Largest Group . | . . . Highest-Rated Group . | . . . Highest-Rated Ally . | . . . Total Orders . | . . . Ally Attacks . | . . . Total Damage . | . . . Kills . | . . . Allies Corrupted . | . . . Allies Melted . | . . . Intel | -11 -10 -10 ------- Run | Scr Mat Min Robot Analysis Total 1 | . 1 . Derelict Logs Recovered 1 | . . 1 Drone Launches . | . . . Drone Recoveries . | . . . Exploration | -11 -10 -10 ------------- Run | Scr Mat Min Turns Passed 2340 | 610 1668 62 Spaces Moved 1462 | 393 1048 21 Core 13 | 9 4 . Treads . | . . . Legs 997 | 384 613 . Wheels . | . . . Hover 452 | . 431 21 Flight . | . . . Fastest Speed 50 | 50 56 116 Average Speed 119 | 119 118 163 Slowest Speed 250 | 150 250 240 Overloaded Moves . | . . . Propulsion Burnouts . | . . . Robots Hopped . | . . . Cave-ins Triggered . | . . . Exploration Rate (%) 42 | 21 99 8 Regions Visited 2 Branch Regions 1 Pre-discovered Areas . | . . . Known Exits Taken . | . . . Unknown Exits Taken 2 | 1 1 . Scrap Searched . | . . . Spaces Dug . | . . . Terrain Destroyed 9 | 5 4 . Melee . | . . . Projectile . | . . . AOE 9 | 5 4 . Terrain Rammed . | . . . Walls Destroyed . | . . . Machines Disabled . | . . . Actions | -11 -10 -10 --------- Run | Scr Mat Min Total 1852 | 490 1329 33 Wait 65 | 9 54 2 Move 1460 | 392 1047 21 Hop . | . . . Pick Up 54 | 17 37 . Fast Attach 22 | 4 18 . Attach 16 | 9 6 1 Detach 9 | 3 6 . Swap 30 | 3 26 1 Drop 53 | 10 43 . Fire 139 | 43 88 8 Melee 3 | . 3 . Ram . | . . . Kick 1 | . 1 . Crush . | . . . Escape Stasis . | . . . Rewire . | . . . Trap . | . . . Miscellaneous . | . . . Route ------- -11/Scrapyard -10/Materials (discovered 4 exits: [*Mat x3] / [*Min]) -10/Mines History --------- Turn | Location | Event 17 | -11/Scrapyard | Discovered new exit (range 15) 611 | -11/Scrapyard | Entered Materials 612 | -10/Materials | Build established: Mutant 836 | -10/Materials | Repaired Datajack 1272 | -10/Materials | Discovered new exit (range 9) 1304 | -10/Materials | Build established: Scavenger-Mutant 1395 | -10/Materials | Core integrity fell below 50% 1423 | -10/Materials | Lost 3 parts (1p2n) 1472 | -10/Materials | Discovered new exit (range 14) 1648 | -10/Materials | Discovered new exit (range 4) 2232 | -10/Materials | Discovered new exit (range 11) 2279 | -10/Materials | Entered Mines 2283 | -10/Mines | Learned Materials stockpile data 2320 | -10/Mines | Core integrity fell below 20% 2341 | -10/Mines | Destroyed by G-47 Trooper with Particle Gun Last Messages --------------- Integration Mediator (100%) Wheel (95%) Lgt. Ion Engine (75%) Hover Unit (100%) Mining Laser (100%) Sml. Matter Pod (86%) Mining Laser (100%) Mining Laser (100%) Lgt. Ion Engine (80%) LOCATION=UNKNOWN GOAL=ESCAPE 02283_ Acquired derelict log, extracted data. Data stored: Materials stockpile data. 02306_ Hover Unit destroyed. 02322_ G-34 Mercenary destroyed. 02324_ Overheating: System interference. 02324_ Particle Cannon temporarily disabled. 02328_ Power failure, Lgt. Nuclear Core shutdown. 02337_ Particle Cannon destroyed. [Achievement: First Step to Greatness] Map ----- +----------------------------------------------------+ | | | | | | | | | | | | | | | | | | | | | ????????????????????????????????? | | ????????????????????????????????? | | ????????????????????????????????? | | ????????????????????????????????? | | ????????????????????????????????? | | ????????????????????????????????? | | ????????????????????????????????? | | ????????????????????????????????? | | ??????????????????????###""###??? | | ??????????????????????# X #??? | | ??????????????????????# ##?? | | ??????????????????????# #?? | | ??????????????????????# #?? | | ??????????????????????# #?? | | ??????????????????????# #?? | | ??????????????????????# @g* #?? | | ??????????????????????#####%!##?? | | ????????????????????????# [ #??? | | ????????????????????????# #??? | | ????????????????????????# ###??? | | ????????????????????????# #????? | | ???????????????????????## #????? | | ??????????????????????## #????? | | ???????????????????#### #????? | | ???????????????????# #????? | | ????????????????# #????? | | ???????????????# #????? | | ??????????????# #???? | | ??????????????# ## #??? | | ??????????????# #?## #??? | | ??????????????## #???# #??? | | ???????????????###????# ###??? | | ?????????????????????? ##????? | | ?????????????????????? ##?????? | | ?????????????????????? #??????? | | ?????????????????????? ##??????? | | ?????????????????????###????????? | | ????????????????????????????????? | | ????????????????????????????????? | | ????????????????????????????????? | +----------------------------------------------------+ Best States ------------- Heat Dissipation 25 Energy Generation 14 Energy Capacity 250 Matter Stores 400 Matter Capacity 400 Sight Range 16 Robot Scan Range 10 Terrain Scan Range 16 Terrain Scan Density 60 Evasion (%) 45 Offensive Hacking 10 Item Schematics ----------------- None Robot Schematics ------------------ None Fabricated ------------ Nothing Alien Tech Used ----------------- None Achievements -------------- Crack Shot Everything Is Under Control First Step to Greatness GoHome() Loot Pinata One Hack Too Far Part-time Mechanic Party Time Shopping List Storm Trooper Uninvited Guest Challenges ------------ None Game ------ Seed SpreadTractorWand Manual? 0 Play Time 01:58:59 Cumulative 78.4 hours Start 2020.10.31 @ 13:56:55 End 2020.10.31 @ 16:12:33 Sessions 1 Manual Loads 0 Difficulty Rogue Special Mode Halloween2020/ForbiddenLore Game No. 26 Rogue 26 Adventurer 0 Explorer 0 Win Type - Total 0 Types 0/0/0/0/0/0/0/0/0 Lore% 2 Gallery% 10 Achievement% 4 Wizard Run 0 Options --------- ASCII 0 Keyboard 1 Movement Vi Keybinds 0 Fullscreen 1 Font 12/Smallcaps Map View 83x54 Tactical HUD 1 Map Filters NONE Filters NONE Steam 1 RUN: ad26b4d3-0670-492e-be7c-1182f4f95fc7